{"text_format":"1","workbook":"xlsx","n_sheets":4,"sheets":["kindermenu's","matrixen","Algemene verkoopsvoorwaarden","Reservatievoorstel"],"not_rendered":{"charts":0,"images":0,"macros":1,"external_links":0,"defined_names":1,"comments":0,"pivot_tables":0},"unopened":[],"bounds":{"document_bytes":16777216,"sheet_cells":100000,"rows_first":2000,"rows_last":500,"rows_between":2000,"halvings":0,"cell_chars":16384,"cell_head_chars":4096},"cells_cut":0,"cells_raw":0,"read":"whole","date_system":"1900"}

{"sheet":"kindermenu's","index":0,"n_rows":54,"n_cols":27,"rows_kept":54,"cut":false,"hidden":false,"merged":[]}
[null,"Deze info is van: Feestzaal Katelijnenhof, Heirweg 172, 8800 Roeselare. Contacteer de zaakvoerder: 0475/618058 - info@katelijnenhof.be - web: www.katelijnenhof.be met foto's en volledige prijslijst."]
[]
[null,{"$f":"\"Rekenmodule kindermenu's. Geldig tot \" & DAY(matrixen!B1) & \" - \" & MONTH(matrixen!B1) & \" - \" & YEAR(matrixen!B1)","v":"Rekenmodule kindermenu's. Geldig tot 23 - 2 - 2018"}]
[]
[null,null,null,null,null,"kinderen",null,"kinderen",null,"kinderen"]
[null,null,null,{"$f":"IF(TODAY()>AA11,\"Deze module is niet meer geldig.\",\"\")","v":""},null," 0 t.e.m. 2 j. 11 maand",null,"3 j. t.e.m. 5 j. 11 maand",null,"6 j, t.e.m. 11 jr. 11 maand"]
[null,"Wijziging per kind:",null,{"$f":"IF(TODAY()>AA11,1/0,SUM(D10:D29))","v":2},null,"0,00",null,{"$f":"matrixen!E28+D7+D32","v":16},null,{"$f":"matrixen!E29+D7+D31","v":23}]
[null,null,null,null,null,"U kan ook de kinderen laten mee-eten met de menu van de volwassenen.( zie een andere rekenmodule)"]
[]
[null,"MAAK STEEDS UW KEUZE in de gele vakken: (scroll naar beneden om meer gegevens in te vullen) Hierboven kunt u uw prijs volgen."]
[null,"(klik op de gele balk, vervolgens op het pijltje rechts en scroll ev. naar beneden)",null,"prijs pp",null,null,null,null,"Eventuele datum van het feest:",null,null,null,null,null,null,null,null,null,null,null,null,null,null,null,null,null,{"$f":"matrixen!B1","v":"2018-02-23"}]
[]
[null,"Kinderen tot 12 jaar eten aan een verminderde prijs. Zij eten bij voorkeur de menu van "]
[null,"de ouders mee. Voor prijzen zie een andere module. Maar een kindermenu is ook mogelijk.",null,null,null,null,null,null,"geraamd aantal kinderen 6 j. t.e.m. 11 jr. 11 maand:"]
[null,null,null,null,null,null,null,null,"geraamd aantal kinderen 3 j. t.e.m. 5 j. 11 maand:"]
[null,"Een kindermenu bestaat standaard uit:",null,null,null,null,null,null,"geraamd aantal kinderen  0 t.e.m. 2 j. 11 maand:"]
[null,"Aperitief: 1 fruitsapje of 1 frisdrankje met chips",null,null,null,null,null,null,null,null,null,null,null,null,null,null,null,null,null,null,null,null,null,null,null,null,"ja"]
[null,null,null,null,null,null,null,null,"uur van aankomst:",null,null,null,null,null,null,null,null,null,null,null,null,null,null,null,null,null,"nee"]
[null,"De kinderen nemen dezelfde hapjes als de ouders.",null,{"$f":"VLOOKUP(B19,matrixen!B8:H9,7,FALSE)","v":2},null,null,null,null,"aan tafel om:"]
[null,"De kinderen nemen dezelfde hapjes als de ouders.",null,null,null,null,null,null,null,null,null,null,null,null,null,null,null,null,null,null,null,null,null,null,null,null,{"$f":"matrixen!B8","v":"De kinderen nemen geen hapjes"}]
[null,"Soepje (idem volwassenen of een andere soepje beschikbaar op die dag)",null,{"$f":"VLOOKUP(B21,matrixen!B11:H12,7,FALSE)","v":0},null,null,null,null,"Uw naam:",null,null,null,null,null,null,null,null,null,null,null,null,null,null,null,null,null,{"$f":"matrixen!B9","v":"De kinderen nemen dezelfde hapjes als de ouders."}]
[null,"Soepje (idem volwassenen of een andere soepje beschikbaar op die dag)",null,null,null,null,null,null,"Adres:",null,null,null,null,null,null,null,null,null,null,null,null,null,null,null,null,null,{"$f":"matrixen!B10","v":0}]
[null,"Kies hier uw hoofdschotel",null,null,null,null,null,null,"Stad:",null,null,null,null,null,null,null,null,null,null,null,null,null,null,null,null,null,{"$f":"matrixen!B11","v":"Soepje (idem volwassenen of een andere soepje beschikbaar op die dag)"}]
[null,"Bij de hoofdschotel is één frisdrankje en indien gewenst appelmoes inbegrepen.",null,null,null,null,null,null,"Tel nr:",null,null,null,null,null,null,null,null,null,null,null,null,null,null,null,null,null,{"$f":"matrixen!B12","v":"De kinderen wensen geen soep"}]
[null,"Kies hier uw hoofdschotel",null,null,null,null,null,null,"email:",null,null,null,null,null,null,null,null,null,null,null,null,null,null,null,null,null,{"$f":"matrixen!B13","v":0}]
[null,"keuze aardappelbereiding",null,null,null,null,null,null,null,"Gaat u akkoord met de algemene verkoopsvoorwaarden?   ","ja",null,null,null,null,null,null,null,null,null,null,null,null,null,null,null,{"$f":"matrixen!B14","v":"Kies hier uw hoofdschotel"}]
[null,"keuze aardappelbereiding",null,null,null,null,null,null,null,null,null,null,null,null,null,null,null,null,null,null,null,null,null,null,null,null,{"$f":"matrixen!B15","v":"Gebakken kippenbout"}]
[null,"Als dessert voorzien wij een cornet",null,null,null,null,null,null,"Geschat totaal voor de kinderen:",{"$f":"Reservatievoorstel!H11","v":0},null,null,null,null,null,null,null,null,null,null,null,null,null,null,null,null,{"$f":"matrixen!B16","v":"Hamburger"}]
[null,null,null,null,null,null,null,null,null,"(Gebaseerd op de door u ingebrachte gegevens)",null,null,null,null,null,null,null,null,null,null,null,null,null,null,null,null,{"$f":"matrixen!B17","v":"Balletjes in tomatensaus (ambachtelijk)"}]
[null,"Kies hier dezelfde regeling als de volwassenen.",null,{"$f":"VLOOKUP(B30,matrixen!B32:Q35,15,FALSE)","v":0},null,null,null,null,null,"Voeg dit bedrag toe aan het totaal van de ouders in een ander rekenblad.",null,null,null,null,null,null,null,null,null,null,null,null,null,null,null,null,{"$f":"matrixen!B18","v":"Frikandel"}]
[null,null,null,{"$f":"D30/2","v":0},null,{"$f":"IF(D31>0,\"voor kids < 12 jaar\",\"\")","v":""},null,null,null,null,null,null,null,null,null,null,null,null,null,null,null,null,null,null,null,null,{"$f":"matrixen!B19","v":0}]
[null,null,null,{"$f":"D30/3","v":0},null,{"$f":"IF(D32>0,\"voor kids < 6 jaar\",\"\")","v":""},null,null,null,null,null,null,null,null,null,null,null,null,null,null,null,null,null,null,null,null,{"$f":"matrixen!B20","v":"keuze aardappelbereiding"}]
[null,null,null,{"$f":"IF(D30>0,\"gratis\",\"\")","v":""},null,{"$f":"IF(D33<>\"\",\"voor kids < 3 jaar\",\"\")","v":""},null,null,null,null,null,null,null,null,null,null,null,null,null,null,null,null,null,null,null,null,{"$f":"matrixen!B21","v":"frietjes "}]
[null,null,null,null,null,null,null,null,null,null,null,null,null,null,null,null,null,null,null,null,null,null,null,null,null,null,{"$f":"matrixen!B22","v":"kroketjes"}]
[null,"Om uw selecties te bewaren, gelieve ze op te slaan op uw harde schijf. (opslaan als)",null,null,null,null,null,null,null,null,null,null,null,null,null,null,null,null,null,null,null,null,null,null,null,null,{"$f":"matrixen!B23","v":0}]
[null,"Om een aanvraag naar ons te versturen stuur een mail naar info@katelijnenhof met in bijlage dit bestand vanaf uw harde schijf.",null,null,null,null,null,null,null,null,null,null,null,null,null,null,null,null,null,null,null,null,null,null,null,null,{"$f":"matrixen!B24","v":"***"}]
[null,null,null,null,null,null,null,null,null,null,null,null,null,null,null,null,null,null,null,null,null,null,null,null,null,null,{"$f":"matrixen!B25","v":"Cornet"}]
[null,null,null,null,null,null,null,null,null,null,null,null,null,null,null,null,null,null,null,null,null,null,null,null,null,null,{"$f":"matrixen!B26","v":0}]
[null,null,null,null,null,null,null,null,null,null,null,null,null,null,null,null,null,null,null,null,null,null,null,null,null,null,{"$f":"matrixen!B27","v":"0 t.e.m. 2 jaar : gratis"}]
[null,null,null,null,null,null,null,null,null,null,null,null,null,null,null,null,null,null,null,null,null,null,null,null,null,null,{"$f":"matrixen!B28","v":"3 t.e.m. 5 jaar : € "}]
[null,null,null,null,null,null,null,null,null,null,null,null,null,null,null,null,null,null,null,null,null,null,null,null,null,null,{"$f":"matrixen!B29","v":"6 t.e.m. 11 jaar : € "}]
[null,null,null,null,null,null,null,null,null,null,null,null,null,null,null,null,null,null,null,null,null,null,null,null,null,null,{"$f":"matrixen!B30","v":0}]
[null,null,null,null,null,null,null,null,null,null,null,null,null,null,null,null,null,null,null,null,null,null,null,null,null,null,{"$f":"matrixen!B31","v":0}]
[null,null,null,null,null,null,null,null,null,null,null,null,null,null,null,null,null,null,null,null,null,null,null,null,null,null,{"$f":"matrixen!B32","v":"Kies hier dezelfde regeling als de volwassenen."}]
[null,null,null,null,null,null,null,null,null,null,null,null,null,null,null,null,null,null,null,null,null,null,null,null,null,null,{"$f":"matrixen!B33","v":"Alle drank na de maaltijd komt op één rekening en wordt door de organisator van het feest betaald"}]
[null,null,null,null,null,null,null,null,null,null,null,null,null,null,null,null,null,null,null,null,null,null,null,null,null,null,{"$f":"matrixen!B34","v":"Elke gast die na de maaltijd een drankje bestelt rekent direct af aan de bar"}]
[null,null,null,null,null,null,null,null,null,null,null,null,null,null,null,null,null,null,null,null,null,null,null,null,null,null,{"$f":"matrixen!B35","v":"Forfait voor drank naar believen (alle bieren en frisdranken van de drankkaart in de zaal) na een maaltijd. pp: "}]
[null,null,null,null,null,null,null,null,null,null,null,null,null,null,null,null,null,null,null,null,null,null,null,null,null,null,{"$f":"matrixen!B36","v":0}]
[null,null,null,null,null,null,null,null,null,null,null,null,null,null,null,null,null,null,null,null,null,null,null,null,null,null,{"$f":"matrixen!B37","v":0}]
[null,null,null,null,null,null,null,null,null,null,null,null,null,null,null,null,null,null,null,null,null,null,null,null,null,null,{"$f":"matrixen!B38","v":0}]
[null,null,null,null,null,null,null,null,null,null,null,null,null,null,null,null,null,null,null,null,null,null,null,null,null,null,{"$f":"matrixen!B39","v":0}]
[null,null,null,null,null,null,null,null,null,null,null,null,null,null,null,null,null,null,null,null,null,null,null,null,null,null,{"$f":"matrixen!B40","v":0}]
[null,null,null,null,null,null,null,null,null,null,null,null,null,null,null,null,null,null,null,null,null,null,null,null,null,null,{"$f":"matrixen!B41","v":0}]
[null,null,null,null,null,null,null,null,null,null,null,null,null,null,null,null,null,null,null,null,null,null,null,null,null,null,{"$f":"matrixen!B42","v":0}]

{"sheet":"matrixen","index":1,"n_rows":382,"n_cols":17,"rows_kept":382,"cut":false,"hidden":true,"merged":[]}
[null,"2018-02-23"]
[null,"minimaal verbruik",null,null,950]
[null,null,null,null,null,null,null,null,null,"Kinderen tot 12 jaar eten aan een verminderde prijs. Zij eten bij voorkeur de menu van "]
[null,"U kunt ook een kindermenu nemen:",null,null,null,null,null,null,null,"de ouders mee."]
[]
[null,"Aperitief: 1 fruitsapje of 1 frisdrankje met chips"]
[null,null,null,null,null,null,null,null,null,"0 t.e.m. 2 jaar : gratis"]
[null,"De kinderen nemen geen hapjes",null,null,null,null,null,0,null,"3 t.e.m. 5 jaar : 1/3 van de prijs"]
[null,"De kinderen nemen dezelfde hapjes als de ouders.",null,null,null,null,null,2,null,"6 t.e.m. 11 jaar : 1/2 van de prijs"]
[]
[null,"Soepje (idem volwassenen of een andere soepje beschikbaar op die dag)",null,null,null,null,null,null,null,"Op de drie gerechten hieronder wordt echter geen extra kinderkorting meer toegekend!"]
[null,"De kinderen wensen geen soep",null,null,null,null,null,-1.5,null,"De aardappelbereiding is bij voorkeur dezelfde van de volwassenen."]
[]
[null,"Kies hier uw hoofdschotel"]
[null,"Gebakken kippenbout"]
[null,"Hamburger"]
[null,"Balletjes in tomatensaus (ambachtelijk)"]
[null,"Frikandel"]
[]
[null,"keuze aardappelbereiding"]
[null,"frietjes "]
[null,"kroketjes"]
[]
[null,"***"]
[null,"Cornet"]
[]
[null,"0 t.e.m. 2 jaar : gratis"]
[null,"3 t.e.m. 5 jaar : € ",null,null,14]
[null,"6 t.e.m. 11 jaar : € ",null,null,21]
[]
[]
[null,"Kies hier dezelfde regeling als de volwassenen."]
[null,"Alle drank na de maaltijd komt op één rekening en wordt door de organisator van het feest betaald",null,null,null,null,null,null,null,null,null,null,null,null,null,null,"één rekening"]
[null,"Elke gast die na de maaltijd een drankje bestelt rekent direct af aan de bar",null,null,null,null,null,null,null,null,null,null,null,null,null,null,"direct afrekenen"]
[null,"Forfait voor drank naar believen (alle bieren en frisdranken van de drankkaart in de zaal) na een maaltijd. pp: ",null,null,null,null,null,null,null,null,null,null,null,null,null,16,16]
[]
[]
[]
[]
[]
[]
[]
[]
[]
[]
[]
[]
[]
[]
[]
[]
[]
[]
[]
[]
[]
[]
[]
[]
[]
[]
[]
[]
[]
[]
[]
[]
[]
[]
[]
[]
[]
[]
[]
[]
[]
[]
[]
[]
[]
[]
[]
[]
[]
[]
[]
[]
[]
[]
[]
[]
[]
[]
[]
[]
[]
[]
[]
[]
[]
[]
[]
[]
[]
[]
[]
[]
[]
[]
[]
[]
[]
[]
[]
[]
[]
[]
[]
[]
[]
[]
[]
[]
[]
[]
[]
[]
[]
[]
[]
[]
[]
[]
[]
[]
[]
[]
[]
[]
[]
[]
[]
[]
[]
[]
[]
[]
[]
[]
[]
[]
[]
[]
[]
[]
[]
[]
[]
[]
[]
[]
[]
[]
[]
[]
[]
[]
[]
[]
[]
[]
[]
[]
[]
[]
[]
[]
[]
[]
[]
[]
[]
[]
[]
[]
[]
[]
[]
[]
[]
[]
[]
[]
[]
[]
[]
[]
[]
[]
[]
[]
[]
[]
[]
[]
[]
[]
[]
[]
[]
[]
[]
[]
[]
[]
[]
[]
[]
[]
[]
[]
[]
[]
[]
[]
[]
[]
[]
[]
[]
[]
[]
[]
[]
[]
[]
[]
[]
[]
[]
[]
[]
[]
[]
[]
[]
[]
[]
[]
[]
[]
[]
[]
[]
[]
[]
[]
[]
[]
[]
[]
[]
[]
[]
[]
[]
[]
[]
[]
[]
[]
[]
[]
[]
[]
[]
[]
[]
[]
[]
[]
[]
[]
[]
[]
[]
[]
[]
[]
[]
[]
[]
[]
[]
[]
[]
[]
[]
[]
[]
[]
[]
[]
[]
[]
[]
[]
[]
[]
[]
[]
[]
[]
[]
[]
[]
[]
[]
[]
[]
[]
[]
[]
[]
[]
[]
[]
[]
[]
[]
[]
[]
[]
[]
[]
[]
[]
[]
[]
[]
[]
[]
[]
[]
[]
[]
[]
[]
[]
[]
[]
[]
[]
[]
[]
[]
[]
[]
[]
[]
[]
[]
[]
[]
[]
[]
[]
[]
[]
[]
[]
[]
[]
[]
[]
[]
[]
[]
[]
["Betaling op de dag zelf (cash of bancontact), u bekomt 2% korting op het totaal"]
["Storting op BE 48 4631 1391 2127 of op BE 14 3770 7615 9383, min. 7 dagen voor het feest, 2% korting"]
["Betaling na het feest. Gelieve 40 % voorschot te storten op BE48 4631 1391 2127 of op BE14 3770 7615 9383 . Geen korting."]

{"sheet":"Algemene verkoopsvoorwaarden","index":2,"n_rows":63,"n_cols":13,"rows_kept":63,"cut":false,"hidden":false,"merged":[]}
[null,"Algemene verkoopsvoorwaarden:"]
[null,"1) Onze facturen zijn contant te betalen bij levering van de goederen. Bijgevolg zal in geval van laattijdige betaling"]
[null,"van rechtswege en zonder voorafgaande ingebrekestelling een intrest aangerekend worden van 12% per jaar op de "]
[null,"bedragen, verschuldigd acht dagen na de vervaldag van de facturen. Tevens zal bij gebrek aan betaling na "]
[null,"aanmaning bij gewone brief, het verschuldigde bedrag van rechtswege verhoogd worden met een forfaitaire"]
[null,"vergoeding van 12 % met een minimum van € 50  voor bijkomende administratieve kosten, debiteurenbewaking "]
[null,"en commerciële stoornissen. Wij behouden ons het recht voor op elk moment de leveringen te staken. Elke "]
[null,"klacht over de kwaliteit van de geleverde goederen moet uiterlijk 24 uur na de levering worden overgemaakt. "]
[null,"Klachten in verband met facturatie kunnen slechts in aanmerking worden genomen zo zij binnen de acht "]
[null,"dagen na ontvangst van de goederen bij aangetekende brief worden meegedeeld. In geval van betwisting zijn "]
[null,"uitsluitend de rechtbanken van Kortrijk bevoegd. De leveringen  geschieden op risico van de bestemmeling. Er "]
[null,"wordt uitdrukkelijk overeengekomen dat de klant door het plaatsen van een bestelling onze algemene "]
[null,"verkoopsvoorwaarden erkent. Elke wijziging hieraan moet voorafgaandelijk in een schriftelijk akkoord worden "]
[null,"vastgelegd."]
[]
[null,"2) Annulatie dient schriftelijk en gedateerd te geschieden. "]
[null,"In geval van annulatie minder dan 60 dagen voor de activiteit blijft het voorschot eigendom van het Katelijnenhof."]
[null,"Voor annulatie minder dan 10 dagen voor de activiteit is de klant in alle gevallen verplicht 35 % van de reservatie-"]
[null,"waarde van de gehele manifestatie te vergoeden."]
[null,"Bij annulatie minder dan 5 dagen voor  de activiteit is de klant in alle gevallen verplicht de reservatie waarde van de "]
[null,"gehele manifestatie te vergoeden."]
[]
[null,"3) Iedere levering van dranken, voedingswaren of diensten in de  zalen is uitsluitend voorbehouden aan het "]
[null,"Katelijnenhof, tenzij er een andere schriftelijke overeenkomst is."]
[]
[null,"4) De klant is eraan gehouden voor iedere dansavond met groot orkest een aanvraag tot toelating in te dienen bij "]
[null,"SABAM, Rijselsestraat 51, 8500 Kortrijk, Tel : 056/210738 en alle kosten voortvloeiend uit deze aanvraag te "]
[null,"dragen.  Voor een gewone disc-jockey betalen wij jaarlijks een vaste bijdrage. Het verbruik (drank en voeding) "]
[null,"van de DJ is ten laste van de klant. Gelet op de nieuwe geluidsnormen, van kracht op 01/01/2013, moet de "]
[null,"klant de DJ of elke andere persoon of toestel dat  geluid produceert verplichten zich aan deze normen te houden. "]
[null,"De toelating voor onze zaal is – maximaal geluidsniveau > 85 dB(A) LAeq,15min en ≤ 95 dB(A) LAeq,15min. "]
[null,"Dit is ruim voldoende. Alle boetes ten gevolge een overschrijding van deze voorwaarde zijn ten laste van de "]
[null,"klant. Er wordt een professionele houding van elke DJ of geluidstechnicus verwacht."]
[]
[null,"5) Alle door de klant meegebrachte materiaal dient door de klant te worden verzekerd en direct na het beëindigen"]
[null,"van de manifestatie te worden verwijderd uit de zaal. Het Katelijnenhof behoudt het recht de leverancier te "]
[null,"aanvaarden en voorschriften te geven om de lokalen ongeschonden te behouden. Het is strikt verboden om "]
[null,"versieringen aan de muren of plafonds te bevestigen met duimspijkers of kleefband ! Bij beschadigingen van "]
[null,"een deel van de muur wordt het geheel als beschadigd beschouwd."]
[]
[null,"6) Het gebruik van de zaal is strikt beperkt tot de in deze overeenkomst vastgestelde functie. "]
[null,"Iedere wijziging in de voorheen verklaarde bestemming brengt automatisch het recht tot prijsherziening met zich mee."]
[]
[null,"7) Het gebruik van de zaal is gratis van zodra het verbruik hoger ligt dan € ",null,null,null,null,null,null,null,{"$f":"matrixen!E2","v":950}]
[null,{"$f":"\"Indien het verbruik lager ligt dan wordt het factuurbedrag opgetrokken tot € \"&J44","v":"Indien het verbruik lager ligt dan wordt het factuurbedrag opgetrokken tot € 950"}]
[null,"Indien uw feest cash (max € 3000) betaald wordt op de dag zelf dan krijgt u een korting van 2 % "]
[null,"op de gehele factuur. Voor traiteurdienst gelden andere kortingsregels."]
[]
[null,"8) Op vrijdag-, zaterdag- en (in geval van een avondfeest) op zondagnacht sluit de zaal, "]
[null,"overeenkomstig het politiereglement, om 03 uur. "]
[null,"Indien de klant dit wenst kan een afwijking bekomen worden op dit reglement mits het betalen van € ",null,null,null,null,null,null,null,null,null,null,{"$f":"J44/10","v":95}]
[null,"(btw incl.) per uur. De klant heeft tijd tot 02u30 om te beslissen of hij van deze afwijking wenst gebruik te "]
[null,"maken of niet. Indien de klant akkoord gaat deze toeslag  te betalen zal het Katelijnenhof  onmiddellijk een "]
[null,"aanvraag doen bij de lokale politie. In het andere geval worden vanaf 02u45 geen dranken meer bediend en"]
[null,"sluiten om 03u00 de deuren. Voor de andere dagen gelden andere tarieven."]
[null,"Op een zaterdag - en zondagmiddagfeest sluit de zaal om 18u30. Indien u wenst langer te blijven wordt per "]
[null,"begonnen uur eveneens een toeslag van € ",null,null,null,null,{"$f":"M51","v":95}]
[null,"(btw incl.) aangerekend."]
[null,"9) De klant is verantwoordelijk voor de goede orde in en rond de feestzaal. Schade veroorzaakt door een der "]
[null,"aanwezigen kan verhaald worden op deze persoon maar als deze om gelijk welke reden de schade niet kan "]
[null,"vergoeden (vb: te weinig financiële middelen of de veroorzaker is onbekend) kan deze schade eveneens "]
[null,"ondeelbaar worden verhaald op de klant , zijnde de persoon die het feest heeft besteld. VB: per gebroken tulpje "]
[null,"aan de lusters van de grote zaal wordt 25 euro aangerekend."]

{"sheet":"Reservatievoorstel","index":3,"n_rows":50,"n_cols":18,"rows_kept":50,"cut":false,"hidden":false,"merged":[[31,0,32,7],[44,0,45,8],[2,16,3,16],[11,10,11,12]]}
[null,null,"Reservatievoorstel  ",null,null,null,null,null,null,null,"Uitsplitsing per BTW tarief."]
["Naam Klant:",null,{"$f":"'kindermenu''s'!J21","v":0},null,null,null,"Katelijnenhof",null,null,null,null,null,null,null,null,{"$f":"IF(Q2>0,\"Prijs drankforfait na de maaltijd, volledig aan 21% BTW:\",\"\")","v":""},{"$f":"'kindermenu''s'!D30","v":0},"= prijs vol"]
["Adres:",null,{"$f":"'kindermenu''s'!J22","v":0},null,null,null,"Heirweg 172",null,null,null,null,null,"Menu",null,null,null,"Totaal aan 21%"]
["Stad:",null,{"$f":"'kindermenu''s'!J23","v":0},null,null,null,"8800 Roeselare",null,null,null,"aantal","totaal:","deel 12%","deel21%",null,{"$f":"IF(Q2>0,\"Drankforfait:\",\"\")","v":""}]
["Tel nr:",null,{"$f":"'kindermenu''s'!J24","v":0},null,null,null,"Tel 051/744161"]
["email:",null,{"$f":"'kindermenu''s'!J25","v":0},null,null,null,"Gsm 0475/618058",null,null,"JR 1/2",{"$f":"D10","v":0},23,{"$f":"ROUND(L6*0.65,2)","v":14.95},{"$f":"L6-M6","v":8.0500000000000007},null,{"$f":"Q2/2","v":0},{"$f":"N6+P6","v":8.0500000000000007}]
["Datum activiteit:",null,{"$f":"'kindermenu''s'!J11","v":"00:00:00"},null,null,null,null,null,null,"JR 1/3",0,16,{"$f":"ROUND(L7*0.65,2)","v":10.4},5.6,null,{"$f":"Q2/3","v":0},5.6]
["Totaal aantal kinderen:",null,{"$f":"D9+D10+D11+D12","v":0},null,"prijs:",null,"aankomst om:",{"$f":"'kindermenu''s'!J18","v":0},null,"JR gratis",0,"0,00",{"$f":"L8*0.65","v":0},{"$f":"L8*0.35","v":0},null,null,0]
[null,null,null,null,null,null,"aan tafel om:",{"$f":"'kindermenu''s'!J19","v":0}]
[null,null,"JR 1/2 (6 t.e.m. 11) :",{"$f":"'kindermenu''s'!J14","v":0},{"$f":"'kindermenu''s'!J7","v":23}]
[null,null,"JR 1/3 (3 t.e.m. 5) :",{"$f":"'kindermenu''s'!J15","v":0},{"$f":"'kindermenu''s'!H7","v":16},null,"raming totaal:",{"$f":"D9*E9+D10*E10+D11*E11+D12*E12","v":0}]
[null,null,"JR gratis (0 t.e.m. 2) :",{"$f":"'kindermenu''s'!J16","v":0},{"$f":"'kindermenu''s'!F7","v":"0,00"},null,null,null,null,null,"Input GKS:"]
[]
["De tafelschikking wordt mee geregeld met de schikking van de ouders.",null,null,null,null,null,null,null,null,null,{"$f":"K6","v":0},{"$f":"J6","v":"JR 1/2"},"x",{"$f":"M6","v":14.95},0.12,{"$f":"K14*N14","v":0},"Dep. B"]
[null,null,null,null,null,null,null,null,null,null,{"$f":"K6","v":0},{"$f":"J6","v":"JR 1/2"},"x",{"$f":"Q6","v":8.0500000000000007},0.21,0,"Dep. A"]
[null,null,null,null,null,null,null,null,null,null,{"$f":"K7","v":0},{"$f":"J7","v":"JR 1/3"},"x",{"$f":"M7","v":10.4},0.12,0,"Dep. B"]
[null,null,null,null,null,null,null,null,null,null,{"$f":"K7","v":0},{"$f":"J7","v":"JR 1/3"},"x",{"$f":"Q7","v":5.6},0.21,0,"Dep. A"]
[]
[{"$f":"'kindermenu''s'!B17","v":"Aperitief: 1 fruitsapje of 1 frisdrankje met chips"}]
[]
[{"$f":"'kindermenu''s'!B19","v":"De kinderen nemen dezelfde hapjes als de ouders."},null,null,null,null,null,null,null,null,null,"De eventuele korting contant is nog niet in bovenstaande splitsing verwerkt."]
[]
[{"$f":"'kindermenu''s'!B21","v":"Soepje (idem volwassenen of een andere soepje beschikbaar op die dag)"}]
[]
[{"$f":"'kindermenu''s'!B23","v":"Kies hier uw hoofdschotel"}]
[{"$f":"'kindermenu''s'!B24","v":"Bij de hoofdschotel is één frisdrankje en indien gewenst appelmoes inbegrepen."}]
[]
[{"$f":"'kindermenu''s'!B26","v":"keuze aardappelbereiding"}]
[]
[{"$f":"'kindermenu''s'!B28","v":"Als dessert voorzien wij een cornet"}]
[]
[{"$f":"'kindermenu''s'!B30","v":"Kies hier dezelfde regeling als de volwassenen."}]
[]
[]
[]
[]
[]
[]
[]
[]
[]
[]
["Het juiste aantal EN de gewenste tafelschikking moet ons meegedeeld worden ten laatste op: ",null,null,null,null,null,null,null,{"$f":"C7-9","v":-9}]
[]
["Wijzigingen na deze datum van aantal en/of tafelschikking hebben prijsherzieningen tot gevolg!"]
[]
["Dit aantal geldt als minimum voor facturatie. Verdere verkoopsvoorwaarden op een ander werkblad. "]
["Vergeet ze niet te lezen.",null,null,null,null,null,null,"Gaat u akkoord met de algemene verkoopsvoorwaarden?",{"$f":"'kindermenu''s'!K26","v":"ja"}]
["Handtekening der beide partijen voor akkoord:"]
[null,null,"De klant",null,null,null,null,"Het Katelijnenhof"]